[Event "Slovakian ECo-C Extraliga 2024-25"]
[Site "Slovakia"]
[Date "2024.11.23"]
[Round "1.4"]
[White "Piesik, Piotr"]
[Black "Roubalik, Jakub"]
[Result "1/2-1/2"]
[ECO "C24"]
[WhiteElo "2421"]
[BlackElo "2315"]
[Annotator "RC"]
[PlyCount "23"]
[EventDate "2024.09.12"]
[EventType "team-tourn"]
[EventCountry "SVK"]
[SourceTitle "playchess.com"]
[Source "ChessBase"]
[SourceQuality "1"]
[TimeControl "5400+30"]

1. e4 {[%emt 0:00:09]} e5 {[%emt 0:01:29]} 2. Bc4 {[%emt 0:00:25]} Nf6 {[%emt 0:00:19]} 3. d3 {[%emt 0:00:19]} c6 {[%emt 0:00:38]} 4. Qe2 {[%emt 0:00:37]} Be7 {[%emt 0:10:51]} 5. Nf3 {[%emt 0:03:21]} O-O {[%emt 0:01:02]} 6. O-O {[%emt 0:06:10]} Qc7 {[%emt 0:03:55]} 7. Bb3 {[%emt 0:06:09]} d6 {[%emt 0:01:28]} 8. Nbd2 {[%emt 0:09:45]} Nbd7 {[%emt 0:04:34]} 9. c3 {[%emt 0:13:29]} Nc5 {[%emt 0:03:52]} 10. Bc2 {[%emt 0:03:01]} Ne6 {[%emt 0:00:47]} 11. g3 {[%emt 0:12:06]} Re8 {[%emt 0:12:04]} 12. Re1 {[%emt 0:04:38]} 1/2-1/2

[Event "Slovakian ECo-C Extraliga 2024-25"]
[Site "Slovakia"]
[Date "2024.11.23"]
[Round "1.4"]
[White "Rigo, Zsolt"]
[Black "Chovan, Milan"]
[Result "1-0"]
[ECO "C78"]
[WhiteElo "2403"]
[BlackElo "2349"]
[Annotator "RC"]
[PlyCount "69"]
[EventDate "2024.09.12"]
[EventType "team-tourn"]
[EventCountry "SVK"]
[SourceTitle "playchess.com"]
[Source "ChessBase"]
[SourceQuality "1"]
[TimeControl "5400+30"]

1. e4 {[%emt 0:00:09]} e5 {[%emt 0:00:07]} 2. Nf3 {[%emt 0:00:29]} Nc6 {[%emt 0:00:07]} 3. Bb5 {[%emt 0:00:12]} a6 {[%emt 0:00:06]} 4. Ba4 {[%emt 0:00:06]} Nf6 {[%emt 0:00:07]} 5. O-O {[%emt 0:01:33]} b5 {[%emt 0:00:09]} 6. Bb3 {[%emt 0:00:24]} Bb7 {[%emt 0:00:08]} 7. d3 {[%emt 0:02:55]} Be7 {[%emt 0:00:09]} 8. Re1 {[%emt 0:03:37]} O-O {[%emt 0:00:43]} 9. Bd2 {[%emt 0:05:25]} d6 {[%emt 0:11:47]} 10. a3 {[%emt 0:00:21]} Qd7 {[%emt 0:02:31]} 11. Nc3 {[%emt 0:01:21]} Nd8 {[%emt 0:00:29]} 12. Nd5 {[%emt 0:03:39]} Nxd5 {[%emt 0:03:59]} 13. exd5 {[%emt 0:01:48]} f5 {[%emt 0:09:19]} 14. Nxe5 {[%emt 0:03:29]} dxe5 {[%emt 0:00:11]} 15. d6+ {[%emt 0:00:09]} Kh8 {[%emt 0:00:05]} 16. dxe7 {[%emt 0:00:24]} Qxe7 {[%emt 0:00:05]} 17. d4 {[%emt 0:07:11]} Nc6 {[%emt 0:07:50]} 18. d5 {[%emt 0:05:45]} Nd4 {[%emt 0:00:08]} 19. Bb4 {[%emt 0:00:19]} Qf6 {[%emt 0:00:23]} 20. Bxf8 {[%emt 0:00:37]} Rxf8 {[%emt 0:00:07]} 21. c3 {[%emt 0:08:21]} Nxb3 {[%emt 0:03:02]} 22. Qxb3 {[%emt 0:00:03]} c6 {[%emt 0:01:18]} 23. c4 {[%emt 0:08:46]} cxd5 {[%emt 0:02:09]} 24. cxd5 {[%emt 0:00:11]} Rd8 {[%emt 0:03:56]} 25. Rad1 {[%emt 0:01:41]} e4 {[%emt 0:02:15]} 26. Qb4 {[%emt 0:07:13]} h6 {[%emt 0:04:56]} 27. Qd4 {[%emt 0:03:40]} Qf7 {[%emt 0:03:05]} 28. d6 {[%emt 0:04:38]} Rd7 {[%emt 0:00:17]} 29. Qe5 {[%emt 0:02:08]} f4 {[%emt 0:01:26]} 30. Rc1 {[%emt 0:04:18]} f3 {[%emt 0:00:36]} 31. Rc7 {[%emt 0:03:34]} Rxc7 {[%emt 0:04:02]} 32. dxc7 {[%emt 0:00:02]} Qg6 {[%emt 0:00:12]} 33. Qg3 {[%emt 0:02:47]} Qc6 {[%emt 0:00:12]} 34. gxf3 {[%emt 0:02:17]} exf3 {[%emt 0:00:10]} 35. h3 {[%emt 0:00:41]} 1-0

[Event "Slovakian ECo-C Extraliga 2024-25"]
[Site "Slovakia"]
[Date "2024.11.23"]
[Round "1.4"]
[White "Jablonicky, Martin"]
[Black "Durana, Jonas"]
[Result "1-0"]
[ECO "B87"]
[WhiteElo "2400"]
[BlackElo "2036"]
[Annotator "RC"]
[PlyCount "55"]
[EventDate "2024.09.12"]
[EventType "team-tourn"]
[EventCountry "SVK"]
[SourceTitle "playchess.com"]
[Source "ChessBase"]
[SourceQuality "1"]
[TimeControl "5400+30"]

1. e4 {[%emt 0:00:03]} c5 {[%emt 0:00:04]} 2. Nf3 {[%emt 0:00:04]} d6 {[%emt 0:00:03]} 3. d4 {[%emt 0:00:15]} cxd4 {[%emt 0:00:05]} 4. Nxd4 {[%emt 0:00:04]} Nf6 {[%emt 0:00:05]} 5. Nc3 {[%emt 0:00:04]} a6 {[%emt 0:00:04]} 6. Bc4 {[%emt 0:00:17]} e6 {[%emt 0:00:04]} 7. Bb3 {[%emt 0:00:04]} b5 {[%emt 0:10:29]} 8. f4 {[%emt 0:02:51]} Be7 {[%emt 0:17:30]} 9. e5 {[%emt 0:04:32]} dxe5 {[%emt 0:02:26]} 10. fxe5 {[%emt 0:00:06]} Nd5 {[%emt 0:05:42]} 11. Nxd5 {[%emt 0:00:06]} exd5 {[%emt 0:00:05]} 12. Qf3 {[%emt 0:01:02]} Be6 {[%emt 0:11:06]} 13. Nxe6 {[%emt 0:02:57]} fxe6 {[%emt 0:00:48]} 14. O-O {[%emt 0:01:43]} Bc5+ {[%emt 0:15:34]} 15. Kh1 {[%emt 0:00:50]} Qd7 {[%emt 0:03:36]} 16. Bg5 {[%emt 0:03:37]} Nc6 {[%emt 0:05:53]} 17. Qh5+ {[%emt 0:34:14]} g6 {[%emt 0:00:06]} 18. Qh3 {[%emt 0:00:40]} Be7 {[%emt 0:04:47]} 19. Bf6 {[%emt 0:00:48]} Bxf6 {[%emt 0:02:41]} 20. Rxf6 {[%emt 0:01:22]} Nd4 {[%emt 0:11:15]} 21. c3 {[%emt 0:05:16]} Nf5 {[%emt 0:01:00]} 22. a4 {[%emt 0:03:17]} O-O-O {[%emt 0:05:04]} 23. g4 {[%emt 0:01:12]} Ne7 {[%emt 0:02:27]} 24. axb5 {[%emt 0:02:18]} axb5 {[%emt 0:00:20]} 25. Qe3 {[%emt 0:01:49]} Qc6 {[%emt 0:00:55]} 26. Qa7 {[%emt 0:02:33]} Qc7 {[%emt 0:00:47]} 27. Qxc7+ {[%emt 0:00:43]} Kxc7 {[%emt 0:00:01]} 28. Ra7+ {[%emt 0:00:08]} 1-0

[Event "Slovakian ECo-C Extraliga 2024-25"]
[Site "Slovakia"]
[Date "2024.11.23"]
[Round "1.4"]
[White "Chovan, Milan"]
[Black "Rigo, Zsolt"]
[Result "*"]
[ECO "C78"]
[WhiteElo "2349"]
[BlackElo "2403"]
[Annotator "RC"]
[PlyCount "50"]
[EventDate "2024.09.12"]
[EventType "team-tourn"]
[EventCountry "SVK"]
[SourceTitle "playchess.com"]
[Source "ChessBase"]
[SourceQuality "1"]
[TimeControl "5400+30"]

1. e4 {[%emt 0:00:09]} e5 {[%emt 0:00:07]} 2. Nf3 {[%emt 0:00:29]} Nc6 {[%emt 0:00:07]} 3. Bb5 {[%emt 0:00:12]} a6 {[%emt 0:00:06]} 4. Ba4 {[%emt 0:00:06]} Nf6 {[%emt 0:00:07]} 5. O-O {[%emt 0:01:33]} b5 {[%emt 0:00:09]} 6. Bb3 {[%emt 0:00:24]} Bb7 {[%emt 0:00:08]} 7. d3 {[%emt 0:02:55]} Be7 {[%emt 0:00:09]} 8. Re1 {[%emt 0:03:37]} O-O {[%emt 0:00:43]} 9. Bd2 {[%emt 0:05:25]} d6 {[%emt 0:11:47]} 10. a3 {[%emt 0:00:21]} Qd7 {[%emt 0:02:31]} 11. Nc3 {[%emt 0:01:21]} Nd8 {[%emt 0:00:29]} 12. Nd5 {[%emt 0:03:39]} Nxd5 {[%emt 0:03:59]} 13. exd5 {[%emt 0:01:48]} f5 {[%emt 0:09:19]} 14. Nxe5 {[%emt 0:03:29]} dxe5 {[%emt 0:00:11]} 15. d6+ {[%emt 0:00:09]} Kh8 {[%emt 0:00:05]} 16. dxe7 {[%emt 0:00:24]} Qxe7 {[%emt 0:00:05]} 17. d4 {[%emt 0:07:11]} Nc6 {[%emt 0:07:50]} 18. d5 {[%emt 0:05:45]} Nd4 {[%emt 0:00:08]} 19. Bb4 {[%emt 0:00:19]} Qf6 {[%emt 0:00:23]} 20. Bxf8 {[%emt 0:00:37]} Rxf8 {[%emt 0:00:07]} 21. c3 {[%emt 0:08:21]} Nxb3 {[%emt 0:03:02]} 22. Qxb3 {[%emt 0:00:03]} c6 {[%emt 0:01:18]} 23. c4 {[%emt 0:08:46]} cxd5 {[%emt 0:02:09]} 24. cxd5 {[%emt 0:00:11]} Rd8 {[%emt 0:03:56]} 25. Rad1 {[%emt 0:01:41]} e4 {[%emt 0:02:15]} *

[Event "Slovakian ECo-C Extraliga 2024-25"]
[Site "Slovakia"]
[Date "2024.11.23"]
[Round "1.4"]
[White "Butkiewicz, Lukasz"]
[Black "Karas, Marek"]
[Result "1/2-1/2"]
[ECO "B38"]
[WhiteElo "2344"]
[BlackElo "2161"]
[Annotator "RC"]
[PlyCount "63"]
[EventDate "2024.09.12"]
[EventType "team-tourn"]
[EventCountry "SVK"]
[SourceTitle "playchess.com"]
[Source "ChessBase"]
[SourceQuality "1"]
[TimeControl "5400+30"]

1. e4 {[%emt 0:00:06]} c5 {[%emt 0:00:05]} 2. Nf3 {[%emt 0:00:11]} Nc6 {[%emt 0:00:07]} 3. d4 {[%emt 0:00:11]} cxd4 {[%emt 0:00:06]} 4. Nxd4 {[%emt 0:00:03]} g6 {[%emt 0:00:07]} 5. c4 {[%emt 0:00:47]} Bg7 {[%emt 0:00:03]} 6. Be3 {[%emt 0:00:11]} Nf6 {[%emt 0:00:10]} 7. Nc3 {[%emt 0:02:11]} d6 {[%emt 0:00:13]} 8. Be2 {[%emt 0:01:36]} O-O {[%emt 0:00:17]} 9. O-O {[%emt 0:00:38]} Nxd4 {[%emt 0:00:18]} 10. Bxd4 {[%emt 0:00:44]} Bd7 {[%emt 0:00:32]} 11. Qd2 {[%emt 0:03:08]} Bc6 {[%emt 0:00:21]} 12. f3 {[%emt 0:01:10]} a5 {[%emt 0:00:14]} 13. b3 {[%emt 0:00:42]} Nd7 {[%emt 0:00:08]} 14. Be3 {[%emt 0:01:01]} Nc5 {[%emt 0:00:10]} 15. Rab1 {[%emt 0:00:56]} Qb6 {[%emt 0:03:40]} 16. Rfc1 {[%emt 0:04:45]} Rfc8 {[%emt 0:02:10]} 17. Nb5 {[%emt 0:17:43]} Qd8 {[%emt 0:00:33]} 18. Nd4 {[%emt 0:02:09]} Bd7 {[%emt 0:00:19]} 19. Bd1 {[%emt 0:11:27]} h5 {[%emt 0:01:51]} 20. a3 {[%emt 0:01:12]} Kh7 {[%emt 0:09:54]} 21. b4 {[%emt 0:01:48]} axb4 {[%emt 0:03:27]} 22. axb4 {[%emt 0:00:06]} Ne6 {[%emt 0:00:50]} 23. Nb3 {[%emt 0:03:41]} Ba4 {[%emt 0:02:11]} 24. f4 {[%emt 0:04:52]} Qh8 {[%emt 0:05:29]} 25. Na5 {[%emt 0:14:30]} Bxd1 {[%emt 0:00:59]} 26. Rxd1 {[%emt 0:00:11]} Bc3 {[%emt 0:08:16]} 27. Qd5 {[%emt 0:01:45]} Qf6 {[%emt 0:07:34]} 28. Rb3 {[%emt 0:06:50]} Nc7 {[%emt 0:05:14]} 29. Qd3 {[%emt 0:02:50]} Bxb4 {[%emt 0:00:42]} 30. Rxb4 {[%emt 0:00:40]} Rxa5 {[%emt 0:00:07]} 31. Rxb7 {[%emt 0:00:04]} Ne6 {[%emt 0:02:50]} 32. Rf1 {[%emt 0:04:16]} 1/2-1/2

[Event "Slovakian ECo-C Extraliga 2024-25"]
[Site "Slovakia"]
[Date "2024.11.23"]
[Round "1.4"]
[White "Borosova, Zuzana"]
[Black "Simacek, Pavel"]
[Result "1-0"]
[ECO "C41"]
[WhiteElo "2175"]
[BlackElo "2452"]
[Annotator "TA"]
[PlyCount "77"]
[EventDate "2024.09.12"]
[EventType "team-tourn"]
[EventCountry "SVK"]
[SourceTitle "playchess.com"]
[Source "ChessBase"]
[SourceQuality "1"]
[TimeControl "5400+30"]

{[%evp 9,77,13,37,16,38,32,40,46,47,37,56,72,115,120,122,118,117,139,147,157,146,152,150,152,142,119,148,140,150,145,153,152,151,156,195,162,195,210,208,207,196,174,168,164,184,205,205,210,187,208,301,314,381,386,440,438,617,593,754,627,703,450,725,666,644,652,1477,1119,29981,29982]} 1. e4 {[%emt 0:00:03]} e5 {[%emt 0:00:26]} 2. Nf3 {[%emt 0:02:47]} d6 {[%emt 0:00:27]} 3. d4 {[%emt 0:03:03]} Nf6 {[%emt 0:00:19]} 4. Nc3 {[%emt 0:00:28]} Nbd7 {[%emt 0:00:18]} 5. h3 {[%emt 0:04:49]} c6 {[%emt 0:02:31]} 6. a4 {[%emt 0:02:55]} exd4 {[%emt 0:08:13]} 7. Qxd4 {[%emt 0:01:26]} d5 {[%emt 0:04:03] Inhibits Bc4.} 8. exd5 {[%emt 0:29:30] White is slightly better.} Bc5 {[%emt 0:00:30]} 9. Qh4 {[%emt 0:00:24]} O-O {[%emt 0:18:42]} 10. dxc6 {[%emt 0:05:30]} Re8+ {[%emt 0:01:38]} 11. Be2 {[%emt 0:00:27]} bxc6 {[%emt 0:00:05] [#]} 12. O-O $1 {[%emt 0:01:04]} Rb8 {[%emt 0:00:14]} 13. Bc4 {[%emt 0:24:19]} Rb4 {[%emt 0:12:05]} 14. b3 {[%emt 0:00:16]} Ba6 {[%emt 0:01:26]} 15. Ba3 $1 {[%emt 0:00:16][%cal Oa3b4]} Bxc4 {[%emt 0:00:47]} 16. Bxb4 {[%emt 0:00:12]} (16. bxc4 $6 Rb8 $11) 16... Bxf1 {[%emt 0:00:41]} 17. Rxf1 {[%emt 0:00:56]} Qb6 {[%emt 0:03:07]} 18. Bxc5 {[%emt 0:01:01]} Qxc5 {[%emt 0:00:04]} 19. Qd4 {[%emt 0:00:25]} Qf5 {[%emt 0:06:55]} 20. Re1 {[%emt 0:03:18]} ({Resist} 20. Qxa7 Qxc2 21. Qd4 Qxb3 $16) 20... Rxe1+ {[%emt 0:07:13]} 21. Nxe1 {[%emt 0:00:02]} Qa5 {[%emt 0:00:06]} 22. b4 {[%emt 0:04:05]} Qc7 {[%emt 0:00:13]} 23. Nd3 {[%emt 0:00:25]} h6 {[%emt 0:01:18]} 24. a5 {[%emt 0:04:22]} Nf8 {[%emt 0:03:18]} 25. Na4 {[%emt 0:01:13]} Ne6 {[%emt 0:01:42]} 26. Qe5 {[%emt 0:02:02] [#] aiming for Qxc7.} Qd8 {[%emt 0:01:37]} 27. Nac5 {[%emt 0:05:29]} Nd4 {[%emt 0:00:13]} 28. c3 {[%emt 0:02:26][%cal Bc2c3,Bc3c4][%mdl 32]} Nb5 {[%emt 0:02:28]} 29. c4 {[%emt 0:00:33]} Nd6 {[%emt 0:01:07]} (29... Nd4 {was necessary.} 30. Ne1 Kh8) 30. Qd4 $18 {[%emt 0:00:21]} Qe7 {[%emt 0:00:21]} 31. Ne5 {[%emt 0:00:28]} Nf5 {[%emt 0:16:40]} 32. Qf4 {[%emt 0:00:09]} g6 {[%emt 0:00:03]} (32... Nd6 $142 33. Nxc6 Qc7 34. Nxa7 Nfe8) 33. Nxc6 {[%emt 0:00:11]} Qe1+ {[%emt 0:00:06]} 34. Kh2 {[%emt 0:00:02]} Nh5 {[%emt 0:00:18]} 35. Nd3 {[%emt 0:02:08] Hoping for Qb8+.} Qf1 {[%emt 0:06:26]} (35... Nxf4 $142 36. Nxe1 Nd6) 36. Qb8+ {[%emt 0:00:47]} Kh7 {[%emt 0:00:10]} 37. Nce5 {[%emt 0:00:20]} f6 {[%emt 0:01:54]} 38. Qxa7+ {[%emt 0:00:12]} Nhg7 {[%emt 0:00:16]} 39. Ng4 {[%emt 0:00:13] Weighted Error Value: White=0.19 (very precise) /Black=0.44.  Mistake:       	---       	Black=2      Inaccurate:     	---       	Black=1      OK:         	White=15    	Black=7      Best:        	White=4     	Black=2      Strong:       	White=2     	---} 1-0

[Event "Slovakian ECo-C Extraliga 2024-25"]
[Site "Slovakia"]
[Date "2024.11.23"]
[Round "1.5"]
[White "Mrva, Martin"]
[Black "Terbe, Zsuzsanna"]
[Result "1/2-1/2"]
[ECO "B34"]
[WhiteElo "2384"]
[BlackElo "2160"]
[Annotator "RC"]
[PlyCount "233"]
[EventDate "2024.09.12"]
[EventType "team-tourn"]
[EventCountry "SVK"]
[SourceTitle "playchess.com"]
[Source "ChessBase"]
[SourceQuality "1"]
[TimeControl "5400+30"]

1. e4 {[%emt 0:01:38]} c5 {[%emt 0:00:05]} 2. Nf3 {[%emt 0:00:09]} Nc6 {[%emt 0:00:05]} 3. d4 {[%emt 0:00:15]} cxd4 {[%emt 0:00:05]} 4. Nxd4 {[%emt 0:00:07]} Nf6 {[%emt 0:00:04]} 5. Nc3 {[%emt 0:00:08]} e5 {[%emt 0:00:09]} 6. Ndb5 {[%emt 0:00:44]} d6 {[%emt 0:00:10]} 7. Nd5 {[%emt 0:00:38]} Nxd5 {[%emt 0:00:09]} 8. exd5 {[%emt 0:00:06]} Nb8 {[%emt 0:00:05]} 9. a4 {[%emt 0:00:21]} Be7 {[%emt 0:00:51]} 10. Be2 {[%emt 0:01:27]} Nd7 {[%emt 0:01:40]} 11. Bd2 {[%emt 0:01:40]} a6 {[%emt 0:00:32]} 12. Na3 {[%emt 0:00:51]} a5 {[%emt 0:00:14]} 13. Bb5 {[%emt 0:06:27]} O-O {[%emt 0:03:04]} 14. Nc4 {[%emt 0:02:27]} f5 {[%emt 0:05:47]} 15. Qe2 {[%emt 0:16:33]} Kh8 {[%emt 0:18:08]} 16. O-O-O {[%emt 0:03:13]} Nc5 {[%emt 0:08:33]} 17. f4 {[%emt 0:10:29]} e4 {[%emt 0:20:39]} 18. h3 {[%emt 0:05:17]} b6 {[%emt 0:04:05]} 19. g4 {[%emt 0:02:38]} Ra7 {[%emt 0:09:28]} 20. g5 {[%emt 0:16:35]} Bd7 {[%emt 0:01:29]} 21. Be3 {[%emt 0:01:11]} Rb7 {[%emt 0:04:41]} 22. Bxd7 {[%emt 0:10:29]} Rxd7 {[%emt 0:06:36]} 23. b3 {[%emt 0:01:03]} Rc7 {[%emt 0:01:37]} 24. Kb1 {[%emt 0:00:18]} Qb8 {[%emt 0:00:33]} 25. Na3 {[%emt 0:00:21]} Qb7 {[%emt 0:07:27]} 26. Nb5 {[%emt 0:00:46]} Rcc8 {[%emt 0:00:31]} 27. h4 {[%emt 0:00:54]} Na6 {[%emt 0:03:28]} 28. h5 {[%emt 0:03:33]} Nc7 {[%emt 0:02:44]} 29. Nxc7 {[%emt 0:01:11]} Qxc7 {[%emt 0:00:10]} 30. h6 {[%emt 0:00:31]} g6 {[%emt 0:01:36]} 31. c4 {[%emt 0:01:01]} Kg8 {[%emt 0:00:30]} 32. Qb2 {[%emt 0:01:31]} Rf7 {[%emt 0:00:17]} 33. Qc3 {[%emt 0:01:05]} Bd8 {[%emt 0:00:19]} 34. Bc1 {[%emt 0:00:26]} Rf8 {[%emt 0:00:08]} 35. Ba3 {[%emt 0:00:51]} Kf7 {[%emt 0:00:26]} 36. Qg7+ {[%emt 0:00:39]} Ke8 {[%emt 0:00:03]} 37. Rde1 {[%emt 0:04:07]} Qe7 {[%emt 0:01:23]} 38. Bb2 {[%emt 0:00:25]} Rf7 {[%emt 0:00:58]} 39. Qd4 {[%emt 0:01:13]} Kd7 {[%emt 0:00:23]} 40. Qd2 {[%emt 0:00:00]} Qe8 {[%emt 0:00:00]} 41. Rh3 {[%emt 0:00:00]} Rc5 {[%emt 0:00:00]} 42. Bd4 {[%emt 0:00:00]} Kc8 {[%emt 0:00:00]} 43. Qc3 {[%emt 0:00:00]} Ra7 {[%emt 0:00:00]} 44. Re2 {[%emt 0:00:00]} Kb7 {[%emt 0:00:00]} 45. Ra2 {[%emt 0:00:00]} Qd7 {[%emt 0:00:00]} 46. Bg1 {[%emt 0:00:00]} Rc8 {[%emt 0:00:00]} 47. Rhh2 {[%emt 0:00:00]} Qc7 {[%emt 0:00:00]} 48. Rhc2 {[%emt 0:00:00]} Rca8 {[%emt 0:00:00]} 49. Rab2 {[%emt 0:00:00]} Qd7 {[%emt 0:00:00]} 50. Kc1 {[%emt 0:00:00]} Rc8 {[%emt 0:00:00]} 51. Kd1 {[%emt 0:00:00]} Rca8 {[%emt 0:00:00]} 52. Ke1 {[%emt 0:00:17]} Rc8 {[%emt 0:00:00]} 53. Rc1 {[%emt 0:00:24]} Rca8 {[%emt 0:00:00]} 54. Qd4 {[%emt 0:01:19]} Kc8 {[%emt 0:00:00]} 55. Rcb1 {[%emt 0:00:41]} Rb7 {[%emt 0:01:22]} 56. Qh8 {[%emt 0:01:19]} Rab8 {[%emt 0:01:39]} 57. Bd4 {[%emt 0:00:19]} Kc7 {[%emt 0:00:51]} 58. Qg7 {[%emt 0:01:22]} Kc8 {[%emt 0:00:14]} 59. Qg8 {[%emt 0:00:43]} Kc7 {[%emt 0:00:50]} 60. Qg7 {[%emt 0:02:24]} Kc8 {[%emt 0:00:07]} 61. Bc3 {[%emt 0:02:00]} Qc7 {[%emt 0:01:41]} 62. Qg8 {[%emt 0:00:59]} Qc5 {[%emt 0:01:43]} 63. Ke2 {[%emt 0:00:13]} Rd7 {[%emt 0:00:58]} 64. Bg7 {[%emt 0:00:38]} Kc7 {[%emt 0:00:59]} 65. Qxh7 {[%emt 0:00:36]} Bxg5 {[%emt 0:00:13]} 66. fxg5 {[%emt 0:00:22]} f4 {[%emt 0:00:04]} 67. Qxg6 {[%emt 0:01:12]} Qe3+ {[%emt 0:00:06]} 68. Kf1 {[%emt 0:00:50]} Qf3+ {[%emt 0:03:39]} 69. Kg1 {[%emt 0:00:09]} Qg3+ {[%emt 0:00:21]} 70. Rg2 {[%emt 0:03:59]} Qe3+ {[%emt 0:00:20]} 71. Kh1 {[%emt 0:01:26]} Qh3+ {[%emt 0:00:47]} 72. Rh2 {[%emt 0:00:49]} Qf3+ {[%emt 0:00:04]} 73. Rg2 {[%emt 0:00:40]} Qh3+ {[%emt 0:00:04]} 74. Rh2 {[%emt 0:00:04]} Qf3+ {[%emt 0:00:05]} 75. Rg2 {[%emt 0:00:05]} Qh3+ {[%emt 0:00:28]} 76. Rh2 {[%emt 0:00:11]} Qf3+ {[%emt 0:00:31]} 77. Kg1 {[%emt 0:01:05]} Qe3+ {[%emt 0:00:35]} 78. Rf2 {[%emt 0:00:06]} Qg3+ {[%emt 0:00:05]} 79. Rg2 {[%emt 0:00:06]} Qe3+ {[%emt 0:00:03]} 80. Kh2 {[%emt 0:00:34]} f3 {[%emt 0:00:21]} 81. Rg4 {[%emt 0:00:47]} Qe2+ {[%emt 0:01:35]} 82. Kh3 {[%emt 0:00:11]} e3 {[%emt 0:01:08]} 83. Bd4 {[%emt 0:02:11]} f2 {[%emt 0:00:53]} 84. Bxe3 {[%emt 0:00:05]} Qxe3+ {[%emt 0:00:43]} 85. Rg3 {[%emt 0:00:18]} Qf4 {[%emt 0:00:42]} 86. Rf1 {[%emt 0:00:18]} Rf8 {[%emt 0:00:24]} 87. Qh5 {[%emt 0:00:27]} Qe5 {[%emt 0:00:29]} 88. Qg4 {[%emt 0:00:51]} Rf4 {[%emt 0:00:18]} 89. Qe6 {[%emt 0:00:39]} Qd4 {[%emt 0:00:18]} 90. Kg2 {[%emt 0:00:09]} Re4 {[%emt 0:00:43]} 91. Qf6 {[%emt 0:00:35]} Qd2 {[%emt 0:00:35]} 92. Rxf2 {[%emt 0:00:16]} Re2 {[%emt 0:00:07]} 93. Rxe2 {[%emt 0:00:13]} Qxe2+ {[%emt 0:00:02]} 94. Qf2 {[%emt 0:00:07]} Qh5 {[%emt 0:00:24]} 95. Qf3 {[%emt 0:00:10]} Qg6 {[%emt 0:00:06]} 96. Qf6 {[%emt 0:00:09]} Qh5 {[%emt 0:00:05]} 97. Qe6 {[%emt 0:00:45]} Qd1 {[%emt 0:00:56]} 98. Re3 {[%emt 0:00:57]} Qh5 {[%emt 0:00:22]} 99. Rg3 {[%emt 0:00:44]} Qd1 {[%emt 0:00:05]} 100. Qf6 {[%emt 0:01:15]} Qh5 {[%emt 0:00:11]} 101. Qf3 {[%emt 0:00:18]} Qg6 {[%emt 0:00:11]} 102. Qd3 {[%emt 0:00:15]} Qh5 {[%emt 0:00:12]} 103. Qe4 {[%emt 0:00:22]} Qd1 {[%emt 0:00:28]} 104. Qf3 {[%emt 0:00:39]} Qc2+ {[%emt 0:00:24]} 105. Kh3 {[%emt 0:00:27]} Qg6 {[%emt 0:00:05]} 106. Kg4 {[%emt 0:00:15]} Re7 {[%emt 0:00:33]} 107. Qf6 {[%emt 0:00:33]} Re4+ {[%emt 0:00:56]} 108. Kf3 {[%emt 0:00:05]} Qe8 {[%emt 0:00:03]} 109. Qf5 {[%emt 0:01:46]} Re1 {[%emt 0:01:32]} 110. Kf4 {[%emt 0:00:41]} Qh5 {[%emt 0:01:22]} 111. Qd3 {[%emt 0:00:24]} Re5 {[%emt 0:01:01]} 112. Qh7+ {[%emt 0:00:26]} Kd8 {[%emt 0:00:37]} 113. Qh8+ {[%emt 0:00:11]} Kd7 {[%emt 0:00:38]} 114. Qh7+ {[%emt 0:00:33]} Kd8 {[%emt 0:00:17]} 115. Qh8+ {[%emt 0:00:35]} Kd7 {[%emt 0:00:05]} 116. Qh7+ {[%emt 0:00:04]} Kd8 {[%emt 0:00:37]} 117. Qh8+ {[%emt 0:00:05]} 1/2-1/2

[Event "Slovakian ECo-C Extraliga 2024-25"]
[Site "Slovakia"]
[Date "2024.11.23"]
[Round "1.5"]
[White "Motuz, Karol"]
[Black "Jurcik, Marian"]
[Result "1/2-1/2"]
[ECO "E70"]
[WhiteElo "2305"]
[BlackElo "2408"]
[Annotator "RC"]
[PlyCount "31"]
[EventDate "2024.09.12"]
[EventType "team-tourn"]
[EventCountry "SVK"]
[SourceTitle "playchess.com"]
[Source "ChessBase"]
[SourceQuality "1"]
[TimeControl "5400+30"]

1. d4 {[%emt 0:00:03]} Nf6 {[%emt 0:00:42]} 2. c4 {[%emt 0:00:05]} g6 {[%emt 0:00:40]} 3. Nc3 {[%emt 0:00:45]} Bg7 {[%emt 0:00:27]} 4. e4 {[%emt 0:00:31]} d6 {[%emt 0:00:16]} 5. Nge2 {[%emt 0:02:45]} Nbd7 {[%emt 0:00:45]} 6. Ng3 {[%emt 0:00:22]} e5 {[%emt 0:00:17]} 7. d5 {[%emt 0:00:19]} h5 {[%emt 0:00:41]} 8. Be2 {[%emt 0:02:12]} h4 {[%emt 0:00:36]} 9. Nf1 {[%emt 0:00:10]} Nc5 {[%emt 0:00:16]} 10. Qc2 {[%emt 0:04:20]} a5 {[%emt 0:00:33]} 11. h3 {[%emt 0:05:11]} Bh6 {[%emt 0:10:10]} 12. Bxh6 {[%emt 0:14:55]} Rxh6 {[%emt 0:00:12]} 13. Ne3 {[%emt 0:00:43]} Kf8 {[%emt 0:14:54]} 14. O-O-O {[%emt 0:07:14]} Rh7 {[%emt 0:12:27]} 15. Kb1 {[%emt 0:06:37]} Kg8 {[%emt 0:03:56]} 16. Bg4 1/2-1/2